Workbook

Sheet 18 laikotarpio biudžetas
B1: įmonės biudžetas
G2: PRADŽIOS DATA | H2: 2011-01-01 | I2: LAIKOTARPIO TRUKMĖ (DIENOMIS) | K2: 14 | L2: PABAIGOS DATA | M2: =TEXT(T5,"yyyy.dd.mm") -> 26.RGP
C5: =UPPER(TEXT(H2,"dd.mmm")) -> 01.SAU | D5: =UPPER(TEXT(C5+DienosIntervalas,"dd.mmm")) -> 15.SAU | E5: =UPPER(TEXT(D5+DienosIntervalas,"dd.mmm")) -> 29.SAU | F5: =UPPER(TEXT(E5+DienosIntervalas,"dd.mmm")) -> 12.VAS | G5: =UPPER(TEXT(F5+DienosIntervalas,"dd.mmm")) -> 26.VAS | H5: =UPPER(TEXT(G5+DienosIntervalas,"dd.mmm")) -> 11.KOV | I5: =UPPER(TEXT(H5+DienosIntervalas,"dd.mmm")) -> 25.KOV | J5: =UPPER(TEXT(I5+DienosIntervalas,"dd.mmm")) -> 08.BAL | K5: =UPPER(TEXT(J5+DienosIntervalas,"dd.mmm")) -> 22.BAL | L5: =UPPER(TEXT(K5+DienosIntervalas,"dd.mmm")) -> 06.GEG | M5: =UPPER(TEXT(L5+DienosIntervalas,"dd.mmm")) -> 20.GEG | N5: =UPPER(TEXT(M5+DienosIntervalas,"dd.mmm")) -> 03.BIR | O5: =UPPER(TEXT(N5+DienosIntervalas,"dd.mmm")) -> 17.BIR | P5: =UPPER(TEXT(O5+DienosIntervalas,"dd.mmm")) -> 01.LIE | Q5: =UPPER(TEXT(P5+DienosIntervalas,"dd.mmm")) -> 15.LIE | R5: =UPPER(TEXT(Q5+DienosIntervalas,"dd.mmm")) -> 29.LIE | S5: =UPPER(TEXT(R5+DienosIntervalas,"dd.mmm")) -> 12.RGP | T5: =UPPER(TEXT(R5+DienosIntervalas+DienosIntervalas,"dd.mmm")) -> 26.RGP | U5: IŠ VISO | V5: TENDENCIJA
B6: GRYNASIS PELNAS | C6: =PajamųLentelė[[#Totals],[1 savaitė]]-IšlaidųLentelė[[#Totals],[1 savaitė]] -> 1,750.00 Lt | D6: =PajamųLentelė[[#Totals],[2 savaitė]]-IšlaidųLentelė[[#Totals],[2 savaitė]] -> 2,236.00 Lt | E6: =PajamųLentelė[[#Totals],[3 savaitė]]-IšlaidųLentelė[[#Totals],[3 savaitė]] -> 1,442.00 Lt | F6: =PajamųLentelė[[#Totals],[4 savaitė]]-IšlaidųLentelė[[#Totals],[4 savaitė]] -> 2,253.00 Lt | G6: =PajamųLentelė[[#Totals],[5 savaitė]]-IšlaidųLentelė[[#Totals],[5 savaitė]] -> 1,533.00 Lt | H6: =PajamųLentelė[[#Totals],[6 savaitė]]-IšlaidųLentelė[[#Totals],[6 savaitė]] -> 1,086.00 Lt | I6: =PajamųLentelė[[#Totals],[7 savaitė]]-IšlaidųLentelė[[#Totals],[7 savaitė]] -> 1,594.00 Lt | J6: =PajamųLentelė[[#Totals],[8 savaitė]]-IšlaidųLentelė[[#Totals],[8 savaitė]] -> 0 | K6: =PajamųLentelė[[#Totals],[9 savaitė]]-IšlaidųLentelė[[#Totals],[9 savaitė]] -> 0 | L6: =PajamųLentelė[[#Totals],[10 savaitė]]-IšlaidųLentelė[[#Totals],[10 savaitė]] -> 0 | M6: =PajamųLentelė[[#Totals],[11 savaitė]]-IšlaidųLentelė[[#Totals],[11 savaitė]] -> 0 | N6: =PajamųLentelė[[#Totals],[12 savaitė]]-IšlaidųLentelė[[#Totals],[12 savaitė]] -> 0 | O6: =PajamųLentelė[[#Totals],[13 savaitė]]-IšlaidųLentelė[[#Totals],[13 savaitė]] -> 0 | P6: =PajamųLentelė[[#Totals],[14 savaitė]]-IšlaidųLentelė[[#Totals],[14 savaitė]] -> 0 | Q6: =PajamųLentelė[[#Totals],[15 savaitė]]-IšlaidųLentelė[[#Totals],[15 savaitė]] -> 0 | R6: =PajamųLentelė[[#Totals],[16 savaitė]]-IšlaidųLentelė[[#Totals],[16 savaitė]] -> 0 | S6: =PajamųLentelė[[#Totals],[17 savaitė]]-IšlaidųLentelė[[#Totals],[17 savaitė]] -> 0 | T6: =PajamųLentelė[[#Totals],[18 savaitė]]-IšlaidųLentelė[[#Totals],[18 savaitė]] -> 0 | U6: =PajamųLentelė[[#Totals],[Iš viso]]-IšlaidųLentelė[[#Totals],[Iš viso]] -> 11,894.00 Lt
A8: pajamos
B9: 1 PAJAMŲ ELEMENTAS | C9: 3,000.00 Lt | D9: 3,500.00 Lt | E9: 2,978.00 Lt | F9: 3,384.00 Lt | G9: 2,858.00 Lt | H9: 2,809.00 Lt | I9: 3,220.00 Lt | U9: =SUM( PajamųLentelė[[#This Row],[1 savaitė]]+PajamųLentelė[[#This Row],[2 savaitė]]+PajamųLentelė[[#This Row],[3 savaitė]]+PajamųLentelė[[#This Row],[4 savaitė]]+PajamųLentelė[[#This Row],[5 savaitė]]+PajamųLentelė[[#This Row],[6 savaitė]]+PajamųLentelė[[#This Row],[7 savaitė]]) -> 21,749.00 Lt
B10: 2 PAJAMŲ ELEMENTAS | C10: 1,150.00 | D10: 1,200.00 | E10: 1,144.00 | F10: 1,400.00 | G10: 1,358.00 | H10: 1,154.00 | I10: 1,245.00 | U10: =SUM(PajamųLentelė[[#This Row],[1 savaitė]:[7 savaitė]]) -> 8,651.00
B11: 3 PAJAMŲ ELEMENTAS | C11: 300.00 | D11: 350.00 | E11: 392.00 | F11: 326.00 | G11: 381.00 | H11: 364.00 | I11: 315.00 | U11: =SUM(PajamųLentelė[[#This Row],[1 savaitė]:[7 savaitė]]) -> 2,428.00
B12: VISOS PAJAMOS | C12: =SUBTOTAL(109,PajamųLentelė[1 savaitė]) -> 4,450.00 Lt | D12: =SUBTOTAL(109,PajamųLentelė[2 savaitė]) -> 5,050.00 Lt | E12: =SUBTOTAL(109,PajamųLentelė[3 savaitė]) -> 4,514.00 Lt | F12: =SUBTOTAL(109,PajamųLentelė[4 savaitė]) -> 5,110.00 Lt | G12: =SUBTOTAL(109,PajamųLentelė[5 savaitė]) -> 4,597.00 Lt | H12: =SUBTOTAL(109,PajamųLentelė[6 savaitė]) -> 4,327.00 Lt | I12: =SUBTOTAL(109,PajamųLentelė[7 savaitė]) -> 4,780.00 Lt | J12: =SUBTOTAL(109,PajamųLentelė[8 savaitė]) -> 0 | K12: =SUBTOTAL(109,PajamųLentelė[9 savaitė]) -> 0 | L12: =SUBTOTAL(109,PajamųLentelė[10 savaitė]) -> 0 | M12: =SUBTOTAL(109,PajamųLentelė[11 savaitė]) -> 0 | N12: =SUBTOTAL(109,PajamųLentelė[12 savaitė]) -> 0 | O12: =SUBTOTAL(109,PajamųLentelė[13 savaitė]) -> 0 | P12: =SUBTOTAL(109,PajamųLentelė[14 savaitė]) -> 0 | Q12: =SUBTOTAL(109,PajamųLentelė[15 savaitė]) -> 0 | R12: =SUBTOTAL(109,PajamųLentelė[16 savaitė]) -> 0 | S12: =SUBTOTAL(109,PajamųLentelė[17 savaitė]) -> 0 | T12: =SUBTOTAL(109,PajamųLentelė[18 savaitė]) -> 0 | U12: =SUBTOTAL(109,PajamųLentelė[Iš viso]) -> 32,828.00 Lt
A13: išlaidos
A14: išlaidos
B15: ATLYGINIMAI | C15: 1,500.00 Lt | D15: 1,577.00 Lt | E15: 1,823.00 Lt | F15: 1,529.00 Lt | G15: 1,759.00 Lt | H15: 1,947.00 Lt | I15: 1,875.00 Lt | U15: =SUM(IšlaidųLentelė[[#This Row],[1 savaitė]:[7 savaitė]]) -> 12,010.00 Lt
B16: NUOMA | C16: 1,000.00 | D16: 1,000.00 | E16: 1,000.00 | F16: 1,000.00 | G16: 1,000.00 | H16: 1,000.00 | I16: 1,000.00 | U16: =SUM(IšlaidųLentelė[[#This Row],[1 savaitė]:[7 savaitė]]) -> 7,000.00
B17: ELEKTRA | C17: 40.00 | D17: 43.00 | E17: 40.00 | F17: 42.00 | G17: 45.00 | H17: 40.00 | I17: 42.00 | U17: =SUM(IšlaidųLentelė[[#This Row],[1 savaitė]:[7 savaitė]]) -> 292.00
B18: TELEFONAS | C18: 12.00 | D18: 11.00 | E18: 13.00 | F18: 14.00 | G18: 11.00 | H18: 15.00 | I18: 15.00 | U18: =SUM(IšlaidųLentelė[[#This Row],[1 savaitė]:[7 savaitė]]) -> 91.00
B19: INTERNETAS | C19: 15.00 | D19: 15.00 | E19: 15.00 | F19: 15.00 | G19: 15.00 | H19: 15.00 | I19: 15.00 | U19: =SUM(IšlaidųLentelė[[#This Row],[1 savaitė]:[7 savaitė]]) -> 105.00
B20: VANDUO | C20: 11.00 | D20: 10.00 | E20: 13.00 | F20: 10.00 | G20: 13.00 | H20: 10.00 | I20: 12.00 | U20: =SUM(IšlaidųLentelė[[#This Row],[1 savaitė]:[7 savaitė]]) -> 79.00
B21: DUJOS | C21: 23.00 | D21: 27.00 | E21: 26.00 | F21: 27.00 | G21: 22.00 | H21: 29.00 | I21: 21.00 | U21: =SUM(IšlaidųLentelė[[#This Row],[1 savaitė]:[7 savaitė]]) -> 175.00
B22: ATLIEKŲ ŠALINIMAS | C22: 4.00 | D22: 4.00 | E22: 4.00 | F22: 4.00 | G22: 4.00 | H22: 4.00 | I22: 4.00 | U22: =SUM(IšlaidųLentelė[[#This Row],[1 savaitė]:[7 savaitė]]) -> 28.00
B23: KABELINĖ TELEVIZIJA | C23: 10.00 | D23: 10.00 | E23: 10.00 | F23: 10.00 | G23: 10.00 | H23: 10.00 | I23: 10.00 | U23: =SUM(IšlaidųLentelė[[#This Row],[1 savaitė]:[7 savaitė]]) -> 70.00
B24: KANCELIARINĖS PREKĖS | C24: 25.00 | D24: 57.00 | E24: 68.00 | F24: 146.00 | G24: 125.00 | H24: 111.00 | I24: 132.00 | U24: =SUM(IšlaidųLentelė[[#This Row],[1 savaitė]:[7 savaitė]]) -> 664.00
B25: DRAUDIMAS | C25: 60.00 | D25: 60.00 | E25: 60.00 | F25: 60.00 | G25: 60.00 | H25: 60.00 | I25: 60.00 | U25: =SUM(IšlaidųLentelė[[#This Row],[1 savaitė]:[7 savaitė]]) -> 420.00
B26: BENDROJI IŠLAIDŲ SUMA | C26: =SUBTOTAL(109,IšlaidųLentelė[1 savaitė]) -> 2,700.00 Lt | D26: =SUBTOTAL(109,IšlaidųLentelė[2 savaitė]) -> 2,814.00 Lt | E26: =SUBTOTAL(109,IšlaidųLentelė[3 savaitė]) -> 3,072.00 Lt | F26: =SUBTOTAL(109,IšlaidųLentelė[4 savaitė]) -> 2,857.00 Lt | G26: =SUBTOTAL(109,IšlaidųLentelė[5 savaitė]) -> 3,064.00 Lt | H26: =SUBTOTAL(109,IšlaidųLentelė[6 savaitė]) -> 3,241.00 Lt | I26: =SUBTOTAL(109,IšlaidųLentelė[7 savaitė]) -> 3,186.00 Lt | J26: =SUBTOTAL(109,IšlaidųLentelė[8 savaitė]) -> 0 | K26: =SUBTOTAL(109,IšlaidųLentelė[9 savaitė]) -> 0 | L26: =SUBTOTAL(109,IšlaidųLentelė[10 savaitė]) -> 0 | M26: =SUBTOTAL(109,IšlaidųLentelė[11 savaitė]) -> 0 | N26: =SUBTOTAL(109,IšlaidųLentelė[12 savaitė]) -> 0 | O26: =SUBTOTAL(109,IšlaidųLentelė[13 savaitė]) -> 0 | P26: =SUBTOTAL(109,IšlaidųLentelė[14 savaitė]) -> 0 | Q26: =SUBTOTAL(109,IšlaidųLentelė[15 savaitė]) -> 0 | R26: =SUBTOTAL(109,IšlaidųLentelė[16 savaitė]) -> 0 | S26: =SUBTOTAL(109,IšlaidųLentelė[17 savaitė]) -> 0 | T26: =SUBTOTAL(109,IšlaidųLentelė[18 savaitė]) -> 0 | U26: =SUBTOTAL(109,IšlaidųLentelė[Iš viso]) -> 20,934.00 Lt
